[Event "Faroes Open 2018"]
[Site "Sandavagur"]
[Date "2018.07.12"]
[Round "7"]
[White "Spiesberger, Gerhard"]
[Black "Rodgaard, John"]
[Result "1/2-1/2"]
[ECO "B26"]
[WhiteElo "2058"]
[BlackElo "2319"]
[Annotator "NA"]
[PlyCount "70"]
[EventDate "2018.07.07"]
[EventType "swiss"]
[EventCountry "FAI"]
[SourceTitle "playchess.com"]
[Source "ChessBase"]
[SourceQuality "1"]
[TimeControl "40/5400+30:900+30"]

1. e4 {[%emt 0:00:00]} c5 {[%emt 0:00:10]} 2. Nc3 {[%emt 0:01:36]} Nc6 {[%emt 0:01:45]} 3. g3 {[%emt 0:00:22]} g6 {[%emt 0:01:14]} 4. Bg2 {[%emt 0:00:31]} Bg7 {[%emt 0:00:22]} 5. d3 {[%emt 0:00:38]} d6 {[%emt 0:00:51]} 6. Be3 {[%emt 0:00:32]} e6 {[%emt 0:02:13]} 7. Qd2 {[%emt 0:00:39]} Rb8 {[%emt 0:00:52]} 8. Nd1 {[%emt 0:04:39]} b5 {[%emt 0:07:24] LiveBook: 8 Games} 9. c3 {[%emt 0:03:08]} b4 {[%emt 0:03:41]} 10. Ne2 {[%emt 0:03:55]} bxc3 {[%emt 0:01:23]} 11. bxc3 {[%emt 0:00:35]} Ba6 {[%emt 0:05:17]} 12. f4 {[%emt 0:01:33]} Nge7 {[%emt 0:03:02]} 13. O-O {[%emt 0:00:39]} Qd7 {[%emt 0:04:05]} 14. Nf2 $11 {[%emt 0:10:40]} O-O {[%emt 0:02:23]} 15. f5 {[%emt 0:03:18]} exf5 {[%emt 0:14:33]} 16. Bh6 {[%emt 0:01:53]} fxe4 {[%emt 0:06:14]} 17. Bh3 {[%emt 0:09:42]} f5 {[%emt 0:00:52]} 18. Bxg7 {[%emt 0:01:16]} Kxg7 {[%emt 0:00:08]} 19. Nxe4 {[%emt 0:04:56]} Nd5 {[%emt 0:14:15]} 20. Nf4 {[%emt 0:03:24]} Nxf4 {[%emt 0:01:44]} 21. gxf4 {[%emt 0:03:18]} Rfe8 {[%emt 0:01:24]} 22. Rfe1 {[%emt 0:04:00]} Re7 {[%emt 0:03:02]} 23. d4 {[%emt 0:09:02]} cxd4 {[%emt 0:02:59]} 24. cxd4 {[%emt 0:00:37]} Rbe8 {[%emt 0:02:18]} 25. d5 {[%emt 0:08:00]} Rxe4 {[%emt 0:01:25]} 26. dxc6 {[%emt 0:04:28]} Qxc6 {[%emt 0:01:43]} 27. Bg2 {[%emt 0:00:56]} Qc5+ {[%emt 0:01:52]} 28. Kh1 {[%emt 0:03:32]} Re2 {[%emt 0:00:27]} 29. Rxe2 {[%emt 0:00:38]} Rxe2 {[%emt 0:00:05]} 30. Qc1 {[%emt 0:01:14]} Qf2 {[%emt 0:05:44]} 31. Qc3+ {[%emt 0:03:48]} Kh6 {[%emt 0:06:54]} 32. Qh3+ {[%emt 0:00:14]} Kg7 {[%emt 0:00:07]} 33. Qc3+ {[%emt 0:00:07]} Kh6 {[%emt 0:04:58]} 34. Qh3+ {[%emt 0:00:11]} Kg7 {[%emt 0:00:08]} 35. Qc3+ {[%emt 0:00:08]} Kh6 {[%emt 0:01:07]} 1/2-1/2

[Event "Faroes Open 2018"]
[Site "Sandavagur"]
[Date "2018.07.12"]
[Round "7"]
[White "Hruby, Milan"]
[Black "Maroroa, Sue"]
[Result "1-0"]
[ECO "E81"]
[WhiteElo "2031"]
[BlackElo "2104"]
[Annotator "NA"]
[PlyCount "75"]
[EventDate "2018.07.07"]
[EventType "swiss"]
[EventCountry "FAI"]
[SourceTitle "playchess.com"]
[Source "ChessBase"]
[SourceQuality "1"]
[TimeControl "40/5400+30:900+30"]

1. d4 {[%emt 0:00:00]} Nf6 {[%emt 0:00:00]} 2. c4 {[%emt 0:00:00]} g6 {[%emt 0:00:00]} 3. Nc3 {[%emt 0:00:00]} Bg7 {[%emt 0:00:00]} 4. e4 {[%emt 0:00:00]} d6 {[%emt 0:00:00]} 5. f3 {[%emt 0:00:00]} O-O {[%emt 0:01:09]} 6. Be3 {[%emt 0:00:05]} c5 {[%emt 0:00:30]} 7. Nge2 {[%emt 0:00:07]} Nc6 {[%emt 0:00:12]} 8. d5 {[%emt 0:00:17]} Ne5 {[%emt 0:00:08]} 9. Ng3 {[%emt 0:00:06]} h5 {[%emt 0:00:11]} 10. Be2 {[%emt 0:00:21]} h4 {[%emt 0:00:11]} 11. Nf1 {[%emt 0:00:07]} e6 {[%emt 0:00:30]} 12. Nd2 {[%emt 0:05:36]} a6 {[%emt 0:06:17]} ({Better is} 12... exd5 $14 13. cxd5 h3) 13. a4 {[%emt 0:00:36]} exd5 {[%emt 0:01:41]} 14. cxd5 {[%emt 0:00:47]} h3 {[%emt 0:03:17]} 15. g3 {[%emt 0:01:08]} Bd7 {[%emt 0:01:26]} 16. O-O {[%emt 0:00:28]} Qc7 {[%emt 0:05:22]} (16... b5 $11 {keeps the balance.}) 17. Kh1 {[%emt 0:11:27]} (17. g4 $16) 17... b5 {[%emt 0:02:10]} 18. g4 $14 {[%emt 0:18:44]} b4 {[%emt 0:23:43]} 19. Ncb1 {[%emt 0:07:54]} Qb7 {[%emt 0:05:31]} 20. g5 {[%emt 0:08:46]} Nh5 {[%emt 0:03:08]} 21. f4 {[%emt 0:03:28]} Nxf4 {[%emt 0:00:20]} 22. Bxf4 {[%emt 0:01:50]} f5 {[%emt 0:00:49]} 23. gxf6 {[%emt 0:07:13]} Rxf6 {[%emt 0:00:40]} 24. Bxe5 {[%emt 0:04:59]} Rxf1+ {[%emt 0:00:26]} 25. Qxf1 {[%emt 0:02:21]} Bxe5 {[%emt 0:01:25]} 26. Nc4 {[%emt 0:01:21]} Rf8 {[%emt 0:00:14]} 27. Qg1 {[%emt 0:00:30]} Bg7 {[%emt 0:01:54]} 28. Nbd2 {[%emt 0:01:35]} Qb8 {[%emt 0:01:00]} 29. Qxg6 {[%emt 0:01:31]} Rf6 {[%emt 0:00:22]} 30. Qg3 {[%emt 0:00:27]} Qf8 {[%emt 0:01:08]} 31. Rg1 {[%emt 0:04:59]} Bxa4 {[%emt 0:02:39]} 32. Bg4 {[%emt 0:03:12]} Bc2 {[%emt 0:03:09]} 33. Be6+ {[%emt 0:02:10]} Kh8 {[%emt 0:00:28]} 34. Nxd6 {[%emt 0:03:29]} Bh6 {[%emt 0:02:39]} 35. Qh4 {[%emt 0:06:45]} Rf4 {[%emt 0:01:39]} 36. Qxh3 {[%emt 0:02:44]} Qf6 {[%emt 0:05:19]} 37. Nf5 {[%emt 0:01:02]} Rxf5 {[%emt 0:01:23]} 38. Bxf5 {[%emt 0:00:36]} 1-0

[Event "Faroes Open 2018"]
[Site "Sandavagur"]
[Date "2018.07.12"]
[Round "7"]
[White "Esteve Sanchez, Sergio"]
[Black "Haubro, Siv"]
[Result "1-0"]
[ECO "A01"]
[WhiteElo "1994"]
[BlackElo "1780"]
[Annotator "NA"]
[PlyCount "105"]
[EventDate "2018.07.07"]
[EventType "swiss"]
[EventCountry "FAI"]
[SourceTitle "playchess.com"]
[Source "ChessBase"]
[SourceQuality "1"]
[TimeControl "40/5400+30:900+30"]

1. b3 {[%emt 0:00:00]} d5 {[%emt 0:02:19]} 2. Bb2 {[%emt 0:00:00]} e6 {[%emt 0:01:19]} 3. e3 {[%emt 0:02:27]} Nd7 {[%emt 0:02:27]} 4. c4 {[%emt 0:03:37]} c6 {[%emt 0:00:18]} 5. Nf3 {[%emt 0:00:06]} f5 {[%emt 0:01:42]} 6. Be2 {[%emt 0:04:50]} Ngf6 {[%emt 0:00:17]} 7. O-O {[%emt 0:00:46]} Bd6 {[%emt 0:02:10]} 8. d4 {[%emt 0:05:51]} O-O {[%emt 0:00:15]} 9. Nbd2 {[%emt 0:01:49]} Ne4 {[%emt 0:01:37]} 10. Ne5 {[%emt 0:02:07]} Nxd2 {[%emt 0:03:50]} 11. Qxd2 {[%emt 0:00:16]} Be7 {[%emt 0:02:50]} 12. Rad1 {[%emt 0:04:43]} Qc7 $14 {[%emt 0:04:24]} 13. f3 {[%emt 0:09:53]} Bg5 {[%emt 0:11:03]} 14. Qc3 {[%emt 0:05:58]} Bf6 {[%emt 0:02:02]} 15. Bd3 Nxe5 {[%emt 0:11:10]} 16. dxe5 {[%emt 0:10:35]} Bg5 {[%emt 0:00:22]} 17. f4 {[%emt 0:02:41]} Be7 {[%emt 0:00:09]} 18. cxd5 {[%emt 0:01:03]} exd5 {[%emt 0:02:09]} 19. Rc1 {[%emt 0:07:01]} Be6 {[%emt 0:04:45]} 20. Qc2 {[%emt 0:05:01]} Rac8 21. g4 {[%emt 0:01:59]} g6 {[%emt 0:04:10]} 22. gxf5 Bxf5 23. Bxf5 {[%emt 0:06:44]} Rxf5 {[%emt 0:00:26]} 24. Rf2 {[%emt 0:00:42]} Qd7 {[%emt 0:00:30]} 25. Qd3 {[%emt 0:00:30]} Qe6 {[%emt 0:00:30]} 26. Kh1 {[%emt 0:00:30]} Rcf8 {[%emt 0:18:07]} 27. Rg2 {[%emt 0:08:38]} c5 28. Rd1 {[%emt 0:04:02]} Rd8 {[%emt 0:02:42]} 29. Qb5 {[%emt 0:00:30]} Rd7 30. Rgd2 {[%emt 0:01:55]} a6 {[%emt 0:11:36]} 31. Qe2 {[%emt 0:02:08]} Rh5 {[%emt 0:09:12]} 32. Qg2 {[%emt 0:02:03]} d4 {[%emt 0:00:30]} 33. exd4 {[%emt 0:00:30]} cxd4 {[%emt 0:00:30]} 34. Rxd4 {[%emt 0:00:30]} Rc7 {[%emt 0:00:30]} 35. Qd5 {[%emt 0:00:30]} Kf7 {[%emt 0:00:30]} 36. Kg2 {[%emt 0:00:30]} Rf5 {[%emt 0:00:30]} 37. Kg3 {[%emt 0:00:30]} Rh5 {[%emt 0:00:30]} 38. Qxe6+ {[%emt 0:00:30]} Kxe6 {[%emt 0:00:30]} 39. Rc1 {[%emt 0:00:30]} Rxc1 {[%emt 0:00:30]} 40. Bxc1 {[%emt 0:00:30]} Rf5 {[%emt 0:00:30]} 41. Rc4 {[%emt 0:15:30]} Kd7 {[%emt 0:15:30]} 42. Rd4+ {[%emt 0:00:30]} Ke6 {[%emt 0:00:30]} 43. Rc4 {[%emt 0:00:30]} Kd7 {[%emt 0:00:30]} 44. Be3 {[%emt 0:00:30]} b5 {[%emt 0:00:30]} 45. Rc2 {[%emt 0:00:30]} h5 {[%emt 0:00:30]} 46. Kf3 {[%emt 0:00:30]} Rf8 {[%emt 0:00:30]} 47. Ke4 {[%emt 0:00:30]} Bb4 {[%emt 0:00:30]} 48. h3 {[%emt 0:00:30]} Re8 {[%emt 0:00:30]} 49. Rg2 {[%emt 0:00:30]} Rg8 {[%emt 0:00:30]} 50. Kd5 {[%emt 0:00:30]} Ke7 {[%emt 0:00:30]} 51. Bc5+ {[%emt 0:00:30]} Bxc5 {[%emt 0:00:30]} 52. Kxc5 {[%emt 0:00:30]} Ke6 {[%emt 0:00:30]} 53. Rg5 {[%emt 0:00:30]} 1-0

[Event "Faroes Open 2018"]
[Site "Sandavagur"]
[Date "2018.07.12"]
[Round "7"]
[White "Fruehauf, Norbert"]
[Black "Gregersen, Einar"]
[Result "1-0"]
[ECO "B23"]
[WhiteElo "1963"]
[BlackElo "1665"]
[Annotator "NA"]
[PlyCount "159"]
[EventDate "2018.07.07"]
[EventType "swiss"]
[EventCountry "FAI"]
[SourceTitle "playchess.com"]
[Source "ChessBase"]
[SourceQuality "1"]
[TimeControl "40/5400+30:900+30"]

1. e4 {[%emt 0:00:00]} c5 {[%emt 0:00:00]} 2. Nc3 {[%emt 0:00:00]} a6 {[%emt 0:00:23]} 3. a4 {[%emt 0:02:10]} Nc6 {[%emt 0:00:57]} 4. g3 {[%emt 0:00:13]} g6 {[%emt 0:00:28]} 5. Bg2 {[%emt 0:00:10]} Bg7 {[%emt 0:00:08]} 6. d3 {[%emt 0:00:20]} Nf6 {[%emt 0:01:24]} 7. Be3 {[%emt 0:00:23]} d6 {[%emt 0:05:13]} 8. h3 {[%emt 0:00:36]} O-O {[%emt 0:01:57]} 9. Qd2 {[%emt 0:00:30]} Re8 {[%emt 0:03:11]} 10. Nge2 {[%emt 0:02:34]} Rb8 {[%emt 0:02:11]} 11. O-O {[%emt 0:00:27]} e6 {[%emt 0:04:54]} 12. Bh6 {[%emt 0:01:29]} Bh8 {[%emt 0:01:39]} 13. Bg5 {[%emt 0:14:35]} b5 $11 {[%emt 0:05:26]} 14. axb5 {[%emt 0:00:16]} axb5 {[%emt 0:00:07]} 15. Ra2 {[%emt 0:10:37]} b4 {[%emt 0:11:16]} 16. Nd1 {[%emt 0:00:33]} b3 {[%emt 0:04:01]} 17. cxb3 {[%emt 0:01:45]} Rxb3 {[%emt 0:02:50]} 18. Ndc3 {[%emt 0:00:51]} Qc7 {[%emt 0:06:24]} 19. Rfa1 {[%emt 0:02:07]} Bd7 {[%emt 0:06:48]} 20. Ra8 {[%emt 0:11:21]} Reb8 {[%emt 0:01:55]} 21. Nc1 {[%emt 0:02:51]} R3b4 {[%emt 0:01:26]} 22. R1a2 {[%emt 0:06:09]} Qb7 {[%emt 0:02:53]} 23. Rxb8+ {[%emt 0:00:22]} Qxb8 {[%emt 0:00:09]} 24. Be3 {[%emt 0:04:24]} e5 {[%emt 0:05:34]} 25. Nd1 {[%emt 0:01:23]} Nd4 {[%emt 0:02:06]} 26. Bxd4 {[%emt 0:05:28]} Rxd4 {[%emt 0:01:39]} 27. Ne2 {[%emt 0:00:59]} Rb4 {[%emt 0:00:35]} 28. Nec3 {[%emt 0:00:35]} Be6 {[%emt 0:02:43]} 29. Ra6 {[%emt 0:00:59]} Qc8 {[%emt 0:04:41]} 30. Rxd6 {[%emt 0:02:50]} Ne8 {[%emt 0:01:21]} 31. Rxe6 {[%emt 0:00:18]} Qxe6 {[%emt 0:00:56]} 32. Nd5 {[%emt 0:00:25]} Rd4 {[%emt 0:02:20]} 33. Qc3 {[%emt 0:01:12]} c4 {[%emt 0:01:38]} 34. Bf1 {[%emt 0:00:50]} Nf6 {[%emt 0:02:59]} 35. N1e3 {[%emt 0:00:17]} cxd3 {[%emt 0:02:03]} 36. Bxd3 {[%emt 0:00:34]} Nxe4 {[%emt 0:01:39]} 37. Bxe4 {[%emt 0:02:18]} Rxe4 {[%emt 0:00:07]} 38. Qa5 {[%emt 0:03:54]} Bg7 {[%emt 0:01:15]} 39. Qa8+ {[%emt 0:03:17]} Bf8 {[%emt 0:00:13]} 40. Nf6+ {[%emt 0:00:25]} Qxf6 {[%emt 0:00:08]} 41. Qxe4 {[%emt 0:15:06]} h5 {[%emt 0:19:55]} 42. Kg2 {[%emt 0:01:51]} Qd6 {[%emt 0:01:57]} 43. Qd5 {[%emt 0:02:18]} Qb8 {[%emt 0:03:31]} 44. Nc4 {[%emt 0:01:00]} Qb3 {[%emt 0:01:35]} 45. Qe4 {[%emt 0:06:40]} Qb4 {[%emt 0:00:00]} 46. Qe2 {[%emt 0:00:00]} Qb5 {[%emt 0:00:00]} 47. Kf1 {[%emt 0:00:00]} Qb7 {[%emt 0:00:00]} 48. Kg1 {[%emt 0:00:00]} Qb5 {[%emt 0:00:00]} 49. Qc2 {[%emt 0:00:00]} Bc5 {[%emt 0:00:00]} 50. b3 {[%emt 0:00:00]} Bd4 {[%emt 0:00:00]} 51. Na3 {[%emt 0:00:00]} Qb4 {[%emt 0:00:00]} 52. Nc4 {[%emt 0:00:00]} Kg7 {[%emt 0:00:00]} 53. Nd2 {[%emt 0:00:00]} f5 {[%emt 0:00:00]} 54. Nf3 {[%emt 0:00:00]} Bc3 {[%emt 0:00:00]} 55. Qd1 {[%emt 0:00:00]} Bd4 {[%emt 0:00:00]} 56. Nxd4 {[%emt 0:00:00]} exd4 {[%emt 0:00:16]} 57. Qe2 {[%emt 0:01:14]} Kf6 {[%emt 0:02:10]} 58. Qe8 {[%emt 0:01:48]} Qd6 {[%emt 0:01:14]} 59. Qh8+ {[%emt 0:01:03]} Ke6 {[%emt 0:00:11]} 60. Qg8+ {[%emt 0:02:58]} Ke5 {[%emt 0:00:12]} 61. Qe8+ {[%emt 0:00:23]} Kd5 {[%emt 0:00:52]} 62. Qa8+ {[%emt 0:00:27]} Ke5 {[%emt 0:02:05]} 63. f4+ {[%emt 0:00:29]} Ke6 {[%emt 0:00:26]} 64. Qe8+ {[%emt 0:01:44]} Kd5 {[%emt 0:00:21]} 65. Kf2 {[%emt 0:03:57]} d3 {[%emt 0:01:48]} 66. Qe5+ {[%emt 0:00:41]} Qxe5 {[%emt 0:00:06]} 67. fxe5 {[%emt 0:00:02]} Kxe5 {[%emt 0:00:02]} 68. Ke3 {[%emt 0:00:21]} g5 {[%emt 0:01:37]} 69. b4 {[%emt 0:01:16]} g4 {[%emt 0:02:35]} 70. hxg4 {[%emt 0:01:17]} hxg4 {[%emt 0:00:46]} 71. b5 {[%emt 0:00:34]} f4+ {[%emt 0:00:41]} 72. gxf4+ {[%emt 0:00:08]} Kf5 {[%emt 0:00:12]} 73. Kxd3 {[%emt 0:02:18]} Kxf4 {[%emt 0:00:48]} 74. b6 {[%emt 0:00:11]} g3 {[%emt 0:00:07]} 75. b7 {[%emt 0:00:05]} g2 {[%emt 0:00:06]} 76. b8=Q+ {[%emt 0:00:06]} Kf3 {[%emt 0:00:07]} 77. Qf8+ {[%emt 0:00:16]} Kg3 {[%emt 0:00:07]} 78. Qg7+ {[%emt 0:00:30]} Kf2 {[%emt 0:00:15]} 79. Qf6+ {[%emt 0:00:17]} Kg3 {[%emt 0:00:44]} 80. Qg5+ {[%emt 0:00:09]} 1-0

[Event "Faroes Open 2018"]
[Site "Sandavagur"]
[Date "2018.07.12"]
[Round "7"]
[White "Fjallheim, Leif Reinert"]
[Black "Nielsen, Jon I Horni"]
[Result "1/2-1/2"]
[ECO "C70"]
[WhiteElo "1886"]
[BlackElo "1735"]
[Annotator "NA"]
[PlyCount "58"]
[EventDate "2018.07.07"]
[EventType "swiss"]
[EventCountry "FAI"]
[SourceTitle "playchess.com"]
[Source "ChessBase"]
[SourceQuality "1"]
[TimeControl "40/5400+30:900+30"]

1. e4 {[%emt 0:01:01]} e5 {[%emt 0:00:00]} 2. Nf3 {[%emt 0:00:10]} Nc6 {[%emt 0:02:12]} 3. Bb5 {[%emt 0:00:27]} a6 {[%emt 0:00:50]} 4. Ba4 {[%emt 0:00:59]} b5 {[%emt 0:04:57]} 5. Bb3 {[%emt 0:00:10]} Nf6 {[%emt 0:01:30]} 6. d3 {[%emt 0:04:14]} d6 {[%emt 0:03:47]} 7. c3 {[%emt 0:02:27]} Be7 {[%emt 0:01:00]} 8. Nbd2 {[%emt 0:04:47]} O-O {[%emt 0:02:12]} 9. Nf1 {[%emt 0:05:26]} d5 {[%emt 0:04:46]} 10. Qe2 {[%emt 0:14:00] LiveBook: 7 Games} dxe4 {[%emt 0:01:05]} ({Black should try} 10... a5 $15) 11. dxe4 $11 {[%emt 0:01:05]} Bg4 {[%emt 0:03:33]} 12. h3 {[%emt 0:02:40]} Bxf3 {[%emt 0:02:29]} 13. Qxf3 {[%emt 0:04:22]} Na5 {[%emt 0:05:17]} 14. Bc2 {[%emt 0:06:00]} c5 {[%emt 0:02:55]} 15. Ng3 {[%emt 0:02:23]} Nc4 {[%emt 0:02:15]} 16. O-O {[%emt 0:08:41]} Nd6 {[%emt 0:05:04]} 17. Rd1 {[%emt 0:05:24]} Qc7 {[%emt 0:04:05]} 18. Bg5 {[%emt 0:05:25]} h6 {[%emt 0:02:28]} 19. Be3 {[%emt 0:03:11]} Rad8 {[%emt 0:03:18]} 20. Bb3 {[%emt 0:06:01]} c4 {[%emt 0:03:02]} 21. Bc2 {[%emt 0:00:16]} Rd7 {[%emt 0:01:33]} 22. Nf5 {[%emt 0:07:45]} Nxf5 {[%emt 0:01:29]} 23. Rxd7 {[%emt 0:01:27]} Qxd7 {[%emt 0:00:45]} 24. exf5 {[%emt 0:00:49]} Qd5 {[%emt 0:01:32]} 25. Qg3 {[%emt 0:04:28]} Nh5 {[%emt 0:00:50]} 26. Qg4 {[%emt 0:00:20]} Nf6 {[%emt 0:00:13]} 27. Qg3 {[%emt 0:00:20]} Nh5 {[%emt 0:00:14]} 28. Qg4 {[%emt 0:00:05]} Nf6 {[%emt 0:00:07]} 29. Qg3 {[%emt 0:00:52]} Nh5 {[%emt 0:00:05]} 1/2-1/2

[Event "Faroes Open 2018"]
[Site "Sandavagur"]
[Date "2018.07.12"]
[Round "7"]
[White "Olsen, Kaj"]
[Black "Nilssen, Ellen Fredericia"]
[Result "1/2-1/2"]
[ECO "C17"]
[WhiteElo "1696"]
[BlackElo "2152"]
[Annotator "NA"]
[PlyCount "78"]
[EventDate "2018.07.07"]
[EventType "swiss"]
[EventCountry "FAI"]
[SourceTitle "playchess.com"]
[Source "ChessBase"]
[SourceQuality "1"]
[TimeControl "40/5400+30:900+30"]

1. e4 {[%emt 0:00:00]} e6 {[%emt 0:00:00]} 2. d4 {[%emt 0:00:00]} d5 {[%emt 0:00:00]} 3. Nc3 {[%emt 0:00:00]} Bb4 {[%emt 0:00:09]} 4. e5 {[%emt 0:00:07]} c5 {[%emt 0:02:17]} 5. a3 {[%emt 0:00:09]} Ba5 {[%emt 0:02:12]} 6. b4 {[%emt 0:00:34]} cxd4 {[%emt 0:01:05]} 7. Nb5 {[%emt 0:01:35]} Bc7 {[%emt 0:00:02]} 8. Nf3 {[%emt 0:05:45]} Bd7 {[%emt 0:04:59]} 9. Qxd4 {[%emt 0:07:34]} Nc6 {[%emt 0:10:17]} 10. Qg4 {[%emt 0:05:16]} Kf8 {[%emt 0:05:45]} 11. Bb2 {[%emt 0:05:26]} h5 $16 {[%emt 0:10:22]} 12. Qg3 {[%emt 0:06:03]} Nce7 {[%emt 0:14:48]} 13. Nxc7 {[%emt 0:19:21]} Qxc7 {[%emt 0:00:02]} 14. Bd3 {[%emt 0:00:30]} Ba4 {[%emt 0:09:52]} 15. Rc1 {[%emt 0:02:12]} Qd7 {[%emt 0:05:27]} 16. O-O {[%emt 0:03:05]} Nh6 {[%emt 0:03:51]} 17. Nd4 {[%emt 0:11:44]} a6 {[%emt 0:03:49]} 18. f4 {[%emt 0:02:59]} g6 {[%emt 0:01:52]} 19. Qg5 {[%emt 0:04:18]} Rh7 {[%emt 0:09:26]} 20. h3 {[%emt 0:02:11]} Qd8 {[%emt 0:01:38]} 21. Qf6 {[%emt 0:01:01]} Bd7 {[%emt 0:02:33]} 22. c4 {[%emt 0:03:44]} dxc4 {[%emt 0:00:28]} 23. Bxc4 {[%emt 0:00:23]} Nef5 {[%emt 0:00:49]} 24. Qxd8+ {[%emt 0:01:13]} Rxd8 {[%emt 0:00:02]} 25. Kf2 {[%emt 0:03:46]} Kg7 {[%emt 0:01:04]} 26. Rfd1 {[%emt 0:01:29]} Rhh8 {[%emt 0:01:37]} 27. Bb3 {[%emt 0:03:37]} Nxd4 {[%emt 0:02:32]} 28. Bxd4 {[%emt 0:00:32]} h4 {[%emt 0:01:51]} 29. Bb6 {[%emt 0:01:39]} Rc8 {[%emt 0:04:02]} 30. Rxc8 {[%emt 0:01:16]} Bxc8 {[%emt 0:00:02]} 31. Rc1 {[%emt 0:00:45]} Nf5 {[%emt 0:01:40]} 32. Kf3 {[%emt 0:02:29]} Bd7 {[%emt 0:00:15]} 33. a4 {[%emt 0:02:36]} Rc8 {[%emt 0:00:19]} 34. Rxc8 {[%emt 0:00:30]} Bxc8 {[%emt 0:00:01]} 35. a5 {[%emt 0:00:37]} Bd7 {[%emt 0:00:13]} 36. Bc2 {[%emt 0:00:57]} Ne7 {[%emt 0:01:51]} 37. Be4 {[%emt 0:01:20]} Nd5 {[%emt 0:00:10]} 38. Bc5 {[%emt 0:01:16]} Bc6 {[%emt 0:00:05]} 39. Bd6 {[%emt 0:00:45]} Kh6 {[%emt 0:00:23]} 1/2-1/2

[Event "Faroes Open 2018"]
[Site "Sandavagur"]
[Date "2018.07.12"]
[Round "7"]
[White "Joensen, Hans Petur"]
[Black "Petersen, Elias"]
[Result "1-0"]
[ECO "A22"]
[WhiteElo "1627"]
[BlackElo "1035"]
[Annotator "NA"]
[PlyCount "25"]
[EventDate "2018.07.07"]
[EventType "swiss"]
[EventCountry "FAI"]
[SourceTitle "playchess.com"]
[Source "ChessBase"]
[SourceQuality "1"]
[TimeControl "40/5400+30:900+30"]

1. c4 {[%emt 0:00:00]} e5 {[%emt 0:00:17]} 2. Nc3 {[%emt 0:00:16]} Nf6 {[%emt 0:00:29]} 3. g3 {[%emt 0:00:50]} c6 {[%emt 0:01:01]} 4. Bg2 {[%emt 0:00:56]} d5 {[%emt 0:00:32]} 5. cxd5 {[%emt 0:01:26]} cxd5 {[%emt 0:00:07]} 6. Qb3 {[%emt 0:02:36]} e4 {[%emt 0:01:14]} 7. d3 {[%emt 0:03:09]} b6 {[%emt 0:09:23]} 8. dxe4 {[%emt 0:05:14]} dxe4 {[%emt 0:01:00]} 9. Nxe4 {[%emt 0:03:12]} Nc6 {[%emt 0:01:29]} 10. Bg5 {[%emt 0:10:25]} Bb7 {[%emt 0:01:10]} 11. Rd1 {[%emt 0:04:47]} Qe7 {[%emt 0:01:03]} 12. Nd6+ {[%emt 0:01:51]} Kd7 {[%emt 0:01:13]} 13. Nf5+ {Bc8} 1-0

[Event "Faroes Open 2018"]
[Site "Sandavagur"]
[Date "2018.07.12"]
[Round "7"]
[White "Petersen, Gutti"]
[Black "Djurhuus, Arant"]
[Result "1/2-1/2"]
[ECO "C68"]
[WhiteElo "1596"]
[BlackElo "1703"]
[Annotator "NA"]
[PlyCount "72"]
[EventDate "2018.07.07"]
[EventType "swiss"]
[EventCountry "FAI"]
[SourceTitle "playchess.com"]
[Source "ChessBase"]
[SourceQuality "1"]
[TimeControl "40/5400+30:900+30"]

1. e4 {[%emt 0:00:12]} e5 {[%emt 0:00:00]} 2. Nf3 {[%emt 0:00:35]} Nc6 {[%emt 0:00:00]} 3. Bb5 {[%emt 0:01:02]} a6 {[%emt 0:00:13]} 4. Bxc6 {[%emt 0:00:22]} dxc6 {[%emt 0:00:11]} 5. d3 {[%emt 0:00:03]} Bd6 {[%emt 0:00:26]} 6. Be3 {[%emt 0:01:11]} Ne7 {[%emt 0:01:14]} 7. d4 {[%emt 0:05:52]} Bg4 {[%emt 0:10:12]} 8. c3 {[%emt 0:03:55]} Ng6 {[%emt 0:02:32]} 9. Nbd2 {[%emt 0:01:44]} Nh4 {[%emt 0:04:42]} 10. O-O {[%emt 0:04:38]} Qf6 {[%emt 0:15:10]} 11. h3 {[%emt 0:04:05]} exd4 {[%emt 0:22:09]} 12. cxd4 {[%emt 0:03:06]} Nxf3+ {[%emt 0:09:31]} 13. Nxf3 {[%emt 0:01:03]} Bxf3 {[%emt 0:02:31]} 14. Qxf3 Qxf3 15. gxf3 {[%emt 0:02:30]} O-O-O {[%emt 0:00:41]} 16. e5 {[%emt 0:03:22]} Bb4 {[%emt 0:01:24]} 17. a3 {[%emt 0:00:34]} Ba5 {[%emt 0:00:10]} 18. Rfd1 {[%emt 0:02:02]} Rd5 {[%emt 0:01:15]} 19. Rd3 {[%emt 0:00:44]} c5 {[%emt 0:04:38]} 20. Rad1 {[%emt 0:04:06]} c4 {[%emt 0:00:24]} 21. Rc3 {[%emt 0:01:03]} Bxc3 {[%emt 0:03:42]} 22. bxc3 {[%emt 0:00:16]} Ra5 {[%emt 0:02:02]} 23. Ra1 {[%emt 0:00:48]} Rd8 {[%emt 0:00:16]} 24. Kg2 {[%emt 0:00:30]} Rdd5 {[%emt 0:00:46]} 25. f4 {[%emt 0:00:19]} Kd7 {[%emt 0:01:21]} 26. Kf3 {[%emt 0:00:15]} Rdb5 {[%emt 0:00:31]} 27. Ke4 {[%emt 0:01:18]} Rb3 {[%emt 0:01:17]} 28. Bd2 {[%emt 0:03:51]} Raxa3 {[%emt 0:01:11]} 29. Rxa3 {[%emt 0:00:10]} Rxa3 {[%emt 0:00:17]} 30. d5 {[%emt 0:00:35]} c6 {[%emt 0:04:47]} 31. Kd4 {[%emt 0:00:10]} cxd5 {[%emt 0:00:23]} 32. Kxd5 {[%emt 0:00:18]} b5 {[%emt 0:00:46]} 33. f5 {[%emt 0:00:24]} Rb3 {[%emt 0:00:37]} 34. e6+ {[%emt 0:00:45]} fxe6+ {[%emt 0:00:09]} 35. fxe6+ {[%emt 0:00:23]} Ke8 {[%emt 0:00:09]} 36. h4 {[%emt 0:01:27]} a5 {[%emt 0:00:58]} 1/2-1/2

[Event "Faroes Open 2018"]
[Site "Sandavagur"]
[Date "2018.07.12"]
[Round "7"]
[White "Nielsen, Suni I Horni"]
[Black "Tummasarson, Flóvin Matras"]
[Result "1-0"]
[ECO "C50"]
[WhiteElo "1487"]
[BlackElo "1237"]
[Annotator "NA"]
[PlyCount "51"]
[EventDate "2018.07.07"]
[EventType "swiss"]
[EventCountry "FAI"]
[SourceTitle "playchess.com"]
[Source "ChessBase"]
[SourceQuality "1"]
[TimeControl "40/5400+30:900+30"]

1. e4 {[%emt 0:00:00]} e5 {[%emt 0:00:00]} 2. Nf3 {[%emt 0:00:00]} Nc6 {[%emt 0:00:00]} 3. Bc4 {[%emt 0:00:52]} Bc5 {[%emt 0:00:12]} 4. Nc3 {[%emt 0:01:04]} d6 {[%emt 0:00:34]} 5. h3 {[%emt 0:00:21]} Be6 {[%emt 0:01:14]} 6. Bb3 {[%emt 0:02:33]} Nf6 {[%emt 0:01:15]} 7. d3 {[%emt 0:01:24]} h6 {[%emt 0:01:48]} 8. O-O {[%emt 0:08:32]} O-O {[%emt 0:03:25]} 9. Ne2 {[%emt 0:02:20]} Qd7 {[%emt 0:07:57]} 10. Bxe6 {[%emt 0:11:44]} fxe6 {[%emt 0:01:37]} 11. Be3 {[%emt 0:00:21]} Bb6 {[%emt 0:00:21]} 12. Ng3 {[%emt 0:00:47]} Qf7 {[%emt 0:03:08]} 13. Nh2 {[%emt 0:04:10]} Qg6 {[%emt 0:09:15]} 14. Bxb6 {[%emt 0:03:03]} axb6 {[%emt 0:00:58]} 15. c3 {[%emt 0:05:10]} d5 {[%emt 0:10:54]} 16. Re1 {[%emt 0:11:10]} Rad8 {[%emt 0:06:03]} 17. Qb3 {[%emt 0:01:28]} Nh5 {[%emt 0:04:46]} 18. Re3 {[%emt 0:06:54]} d4 {[%emt 0:02:39]} 19. cxd4 {[%emt 0:02:07]} exd4 {[%emt 0:02:03]} 20. Rf3 {[%emt 0:03:57]} Rxf3 {[%emt 0:06:56]} 21. Nxf3 {[%emt 0:00:01]} Nxg3 {[%emt 0:00:47]} 22. fxg3 {[%emt 0:01:09]} Rf8 {[%emt 0:03:27]} 23. g4 {[%emt 0:03:43]} Kh8 {[%emt 0:05:12]} 24. Rf1 {[%emt 0:01:59]} e5 {[%emt 0:02:16]} 25. Qa3 {[%emt 0:01:03]} Qf6 {[%emt 0:03:34]} 26. Nd2 {[%emt 0:00:23]} 1-0